fUSD/lending_fUSD_20260625
["ID","MTS","AMOUNT","RATE_DAILY","PERIOD"]
[426401071,1782349843000,-150.0,0.0001416,2]
[426401074,1782349843000,-44745.0242276,0.00014164,2]
[426401073,1782349843000,-43299.21064258,0.00014164,2]
[426401075,1782349843000,-150.0,0.00014166,2]
[426401080,1782349843000,-932.95,0.00014167,2]
[426401082,1782349843000,-542.12,0.00014167,2]
[426401020,1782349843000,-1280.76,0.00013989,2]
[426401079,1782349843000,-932.8,0.00014167,2]
[426401048,1782349843000,-150.0,0.00014063,2]
[426401081,1782349843000,-542.12,0.00014167,2]
[426401047,1782349843000,-150.0,0.00014054,2]
[426401046,1782349843000,-150.0,0.00014052,2]
[426401021,1782349843000,-1280.76,0.00013989,2]
[426401022,1782349843000,-1280.91701702,0.00013989,2]
[426401025,1782349843000,-848.77,0.00013989,2]
[426401023,1782349843000,-848.77,0.00013989,2]
[426401027,1782349843000,-848.79,0.00013989,2]
[426401029,1782349843000,-150.0,0.00013992,2]
[426401028,1782349843000,-60000.0,0.0001399,2]
[426401034,1782349843000,-150.0,0.00014003,2]
[426401037,1782349843000,-150.0,0.00014014,2]
[426401039,1782349843000,-150.0,0.00014024,2]
[426401035,1782349843000,-150.0,0.00014003,2]
[426401036,1782349843000,-150.0,0.0001401,2]
[426401032,1782349843000,-3632.079009,0.00014,2]
[426401017,1782349843000,-788.60376906,0.00013989,2]
[426401038,1782349843000,-150.0,0.00014019,2]
[426401049,1782349843000,-150.0,0.00014068,2]
[426401044,1782349843000,-150.0,0.00014046,2]
[426401042,1782349843000,-150.0,0.00014036,2]
[426401043,1782349843000,-150.0,0.00014042,2]
[426401030,1782349843000,-150.0,0.00013993,2]
[426401050,1782349843000,-150.0,0.00014068,2]
[426401045,1782349843000,-150.0,0.00014049,2]
[426401052,1782349843000,-150.0,0.00014081,2]
[426401041,1782349843000,-150.0,0.00014032,2]
[426401051,1782349843000,-150.0,0.00014076,2]
[426401031,1782349843000,-150.0,0.00013993,2]
[426401033,1782349843000,-250.0,0.00014,2]
[426401040,1782349843000,-150.0,0.00014028,2]
[426401126,1782349844000,-150.0,0.00014264,2]
[426401121,1782349844000,-3186.71017534,0.00014252,2]
[426401128,1782349844000,-150.0,0.00014268,2]
[426401124,1782349844000,-150.0,0.00014259,2]
[426401114,1782349844000,-150.0,0.00014231,2]
[426401120,1782349844000,-252.65146257,0.00014252,2]
[426401123,1782349844000,-150.0,0.00014258,2]
[426401118,1782349844000,-150.0,0.00014244,2]
[426401117,1782349844000,-505.85568272,0.00014242,2]
[426401113,1782349844000,-150.0,0.0001423,2]
[426401119,1782349844000,-150.0,0.00014247,2]
[426401125,1782349844000,-319.0,0.00014262,2]
[426401135,1782349844000,-150.0,0.00014298,2]
[426401129,1782349844000,-150.0,0.00014276,2]
[426401130,1782349844000,-150.0,0.00014279,2]
[426401132,1782349844000,-150.0,0.00014293,2]
[426401131,1782349844000,-150.0,0.0001428,2]
[426401139,1782349844000,-150.0,0.00014329,2]
[426401137,1782349844000,-150.0,0.00014312,2]
[426401140,1782349844000,-150.00000001,0.00014329,2]
[426401133,1782349844000,-150.0,0.00014294,2]
[426401134,1782349844000,-150.0,0.00014296,2]
[426401138,1782349844000,-150.0,0.00014329,2]
[426401136,1782349844000,-150.0,0.00014311,2]
[426401142,1782349844000,-154.55636631,0.00014329,2]
[426401115,1782349844000,-150.0,0.00014237,2]
[426401127,1782349844000,-150.0,0.00014264,2]
[426401116,1782349844000,-150.0,0.0001424,2]
[426401097,1782349844000,-3038.71,0.00014167,2]
[426401106,1782349844000,-150.0,0.00014199,2]
[426401143,1782349844000,-150.0,0.00014329,2]
[426401093,1782349844000,-3038.71,0.00014167,2]
[426401083,1782349844000,-542.12,0.00014167,2]
[426401092,1782349844000,-2615.56,0.00014167,2]
[426401084,1782349844000,-542.12,0.00014167,2]
[426401091,1782349844000,-3038.71,0.00014167,2]
[426401086,1782349844000,-542.19576843,0.00014167,2]
[426401089,1782349844000,-2615.56,0.00014167,2]
[426401088,1782349844000,-448.76706005,0.00014167,2]
[426401090,1782349844000,-2615.56,0.00014167,2]
[426401087,1782349844000,-500.0,0.00014167,2]
[426401101,1782349844000,-150.0,0.00014181,2]
[426401096,1782349844000,-2615.69110193,0.00014167,2]
[426401095,1782349844000,-3038.71,0.00014167,2]
[426401098,1782349844000,-3038.85115319,0.00014167,2]
[426401103,1782349844000,-366.03593821,0.00014186,2]
[426401094,1782349844000,-2615.56,0.00014167,2]
[426401104,1782349844000,-150.0,0.00014187,2]
[426401102,1782349844000,-150.0,0.00014182,2]
[426401100,1782349844000,-150.0,0.00014176,2]
[426401099,1782349844000,-150.0,0.0001417,2]
[426401105,1782349844000,-150.0,0.00014189,2]
[426401107,1782349844000,-150.0,0.00014199,2]
[426401108,1782349844000,-150.0,0.00014205,2]
[426401110,1782349844000,-150.0,0.00014215,2]
[426401112,1782349844000,-150.0,0.00014224,2]
[426401109,1782349844000,-150.0,0.00014207,2]
[426401111,1782349844000,-150.0,0.00014223,2]
[426401152,1782349844000,-1397763.8094085,0.00014352,2]
[426401122,1782349844000,-500.0,0.00014253,2]
[426401146,1782349844000,-209.17418234,0.00014329,2]
[426401173,1782349844000,-500.0,0.00014352,2]
[426401178,1782349844000,-151.0,0.00014352,2]
[426401180,1782349844000,-151.0,0.00014352,2]
[426401181,1782349844000,-50962.3294217,0.00014352,2]
[426401179,1782349844000,-151.0,0.00014352,2]
[426401182,1782349844000,-151.0,0.00014352,2]
[426401183,1782349844000,-574.22192278,0.00014381,2]
[426401184,1782349844000,-383.76571494,0.00014396,2]
[426401189,1782349844000,-338.63341566,0.00014527,2]
[426401190,1782349844000,-1558.93932892,0.00014531,2]
[426401185,1782349844000,-2000.0,0.000144,2]
[426401187,1782349844000,-3166.32335088,0.000145,2]
[426401188,1782349844000,-1558.93932892,0.00014514,2]
[426401186,1782349844000,-506.27,0.00014441,2]
[426401192,1782349844000,-44745.0242276,0.00014532,2]
[426401202,1782349844000,-151.0,0.0001463,2]
[426401191,1782349844000,-43299.21064258,0.00014532,2]
[426401194,1782349844000,-158.56,0.00014542,2]
[426401193,1782349844000,-1558.93932892,0.00014539,2]
[426401195,1782349844000,-1558.93932892,0.00014552,2]
[426401197,1782349844000,-200.0,0.00014572,2]
[426401199,1782349844000,-2000.0,0.000146,2]
[426401200,1782349844000,-1000.0,0.000146,5]
[426401196,1782349844000,-395.63650625,0.00014563,2]
[426401201,1782349844000,-1558.93932892,0.00014605,2]
[426401198,1782349844000,-3186.71017534,0.00014576,2]
[426401203,1782349844000,-151.0,0.0001463,2]
[426401168,1782349844000,-500.0,0.00014352,2]
[426401171,1782349844000,-500.0,0.00014352,2]
[426401141,1782349844000,-150.0,0.00014329,2]
[426401170,1782349844000,-500.0,0.00014352,2]
[426401174,1782349844000,-481.954369,0.00014352,2]
[426401149,1782349844000,-300.0,0.00014351,2]
[426401144,1782349844000,-150.00000001,0.00014329,2]
[426401150,1782349844000,-227.4541655,0.00014351,2]
[426401148,1782349844000,-448.53713453,0.00014342,2]
[426401147,1782349844000,-297.89529666,0.00014329,2]
[426401145,1782349844000,-150.0,0.00014329,2]
[426401151,1782349844000,-18137.7449399,0.00014352,2]
[426401158,1782349844000,-500.0,0.00014352,2]
[426401159,1782349844000,-500.0,0.00014352,2]
[426401154,1782349844000,-73419.7795474,0.00014352,2]
[426401156,1782349844000,-237061.1493253,0.00014352,2]
[426401157,1782349844000,-500.0,0.00014352,2]
[426401160,1782349844000,-500.0,0.00014352,2]
[426401153,1782349844000,-49578.2736641,0.00014352,2]
[426401163,1782349844000,-500.0,0.00014352,2]
[426401155,1782349844000,-2963.0098271,0.00014352,2]
[426401169,1782349844000,-500.0,0.00014352,2]
[426401166,1782349844000,-500.0,0.00014352,2]
[426401172,1782349844000,-500.0,0.00014352,2]
[426401164,1782349844000,-500.0,0.00014352,2]
[426401175,1782349844000,-151.0,0.00014352,2]
[426401176,1782349844000,-151.0,0.00014352,2]
[426401165,1782349844000,-500.0,0.00014352,2]
[426401177,1782349844000,-151.0,0.00014352,2]
[426401161,1782349844000,-500.0,0.00014352,2]
[426401162,1782349844000,-500.0,0.00014352,2]
[426401204,1782349844000,-1558.93932892,0.00014637,2]
[426401167,1782349844000,-500.0,0.00014352,2]
[426401219,1782349845000,-200.0,0.00014817,2]
[426401225,1782349845000,-5800.0,0.00014866,2]
[426401220,1782349845000,-585.59,0.00014826,2]
[426401222,1782349845000,-518.0,0.00014844,2]
[426401223,1782349845000,-5800.0,0.00014849,2]
[426401234,1782349845000,-9277.0,0.000149,5]
[426401232,1782349845000,-240.0,0.00014896,2]
[426401229,1782349845000,-6111.0,0.00014889,2]
[426401233,1782349845000,-25000.0,0.000149,3]
[426401230,1782349845000,-151.0,0.0001489,2]
[426401231,1782349845000,-5800.0,0.00014891,2]
[426401217,1782349845000,-2000.0,0.000148,2]
[426401227,1782349845000,-200.0,0.00014879,2]
[426401215,1782349845000,-197.2,0.00014762,2]
[426401207,1782349845000,-1027.49440106,0.000147,2]
[426401226,1782349845000,-5800.0,0.00014874,2]
[426401216,1782349845000,-15000.0,0.00014792,2]
[426401218,1782349845000,-1000.0,0.000148,5]
[426401224,1782349845000,-5800.0,0.00014858,2]
[426401211,1782349845000,-1558.93932892,0.00014727,2]
[426401210,1782349845000,-1558.93932892,0.00014726,2]
[426401212,1782349845000,-400.0,0.00014733,2]
[426401209,1782349845000,-10000.0,0.00014716,2]
[426401206,1782349845000,-1000.0,0.000147,5]
[426401213,1782349845000,-200.0,0.00014756,2]
[426401208,1782349845000,-1558.93932892,0.00014703,2]
[426401214,1782349845000,-3174.214,0.00014762,2]
[426401238,1782349845000,-5800.0,0.000149,2]
[426401205,1782349845000,-1558.93932892,0.00014663,2]
[426401221,1782349845000,-15000.0,0.00014828,2]
[426401236,1782349845000,-574.22192278,0.000149,2]
[426401242,1782349845000,-383.76571494,0.000149,2]
[426401239,1782349845000,-777.82883329,0.000149,2]
[426401267,1782349845000,-475000.0,0.00015,2]
[426401266,1782349845000,-353.47681389,0.00015,2]
[426401265,1782349845000,-318.0,0.00012087,2]
[426401263,1782349845000,-355.16858892,0.00015,2]
[426401262,1782349845000,-755.80481717,0.00015,2]
[426401260,1782349845000,-2529.30522254,0.00015,2]
[426401258,1782349845000,-1115.09561194,0.00015,2]
[426401264,1782349845000,-919.39818052,0.00015,2]
[426401235,1782349845000,-7420.0,0.000149,5]
[426401257,1782349845000,-2157037.36712067,0.00015,2]
[426401254,1782349845000,-313.0,0.00015,2]
[426401256,1782349845000,-6417457.35012417,0.00015,2]
[426401255,1782349845000,-150.0,0.00015,2]
[426401253,1782349845000,-1021282.39007495,0.00015,2]
[426401259,1782349845000,-3624.6341063,0.00015,2]
[426401248,1782349845000,-378.0,0.00014965,2]
[426401228,1782349845000,-5800.0,0.00014883,2]
[426401246,1782349845000,-378.0,0.00014912,2]
[426401241,1782349845000,-15648.67780313,0.000149,3]
[426401251,1782349845000,-468.86955409,0.00014993,2]
[426401252,1782349845000,-300.0,0.00014999,2]
[426401240,1782349845000,-252.65146257,0.000149,2]
[426401237,1782349845000,-1600.0,0.000149,5]
[426401243,1782349845000,-3186.71017534,0.000149,2]
[426401249,1782349845000,-6111.0,0.00014983,2]
[426401250,1782349845000,-448.53713453,0.0001499,2]
[426401261,1782349845000,-830.68542254,0.00015,2]
[426401247,1782349845000,-52695.0,0.00014959,2]
[426401244,1782349845000,-43299.21064258,0.000149,2]
[426401245,1782349845000,-44745.0242276,0.000149,2]
[426401272,1782349857000,216.0,0.0003119,30]
[426401273,1782349861000,2813.73,0.00030446,30]
[426401274,1782349865000,250.93,0.0003011,30]
[426401277,1782349905000,181.88,0.00029923,120]
[426401284,1782350017000,154.0,0.00028743,30]
[426401286,1782350018000,154.0,0.00029743,30]
[426401287,1782350020000,154.0,0.00030743,30]
[426401289,1782350052000,152.0,0.00028743,30]
[426401290,1782350053000,152.0,0.00029743,30]
[426401291,1782350055000,152.0,0.00030743,30]
[426401292,1782350100000,350.0,8.2e-07,2]
[426401297,1782350222000,154.0,0.00028743,30]
[426401298,1782350224000,154.0,0.00029743,30]
[426401299,1782350225000,154.0,0.00030743,30]
[426401302,1782350438000,250.0,0.00031506,30]
[426401303,1782350460000,10000.0,0.00031506,30]
[426401305,1782350608000,10000.0,0.00031506,30]
[426401306,1782350649000,10000.0,0.00031506,30]
[426401307,1782350663000,10000.0,0.00031506,30]
[426401308,1782350676000,10000.0,0.00031506,30]
[426401309,1782350732000,10000.0,0.00031506,30]
[426401327,1782351003000,156.78,0.00029931,30]
[426401328,1782351004000,154.0,0.00028739,30]
[426401329,1782351005000,154.0,0.00029739,30]
[426401330,1782351006000,154.0,0.00030739,30]
[426401331,1782351011000,663.87555763,0.000315,30]
[426401332,1782351022000,196.0,0.00031507,30]
[426401366,1782351033000,-500.0,0.00011211,2]
[426401369,1782351033000,-500.0,0.00011211,2]
[426401368,1782351033000,-500.0,0.00011211,2]
[426401362,1782351033000,-166.66,0.00011178,2]
[426401373,1782351033000,-500.0,0.00011211,2]
[426401372,1782351033000,-500.0,0.00011211,2]
[426401367,1782351033000,-500.0,0.00011211,2]
[426401370,1782351033000,-500.0,0.00011211,2]
[426401365,1782351033000,-500.0,0.00011211,2]
[426401364,1782351033000,-500.0,0.00011211,2]
[426401363,1782351033000,-500.0,0.00011211,2]
[426401361,1782351033000,-284.72,0.00011068,2]
[426401353,1782351033000,-1037.83181041,0.00010573,2]
[426401357,1782351033000,-383.02,0.00010795,2]
[426401356,1782351033000,-150.0,0.00010665,2]
[426401359,1782351033000,-383.02,0.00011058,2]
[426401358,1782351033000,-166.66,0.00010959,2]
[426401355,1782351033000,-172.1,0.00010655,2]
[426401354,1782351033000,-2640.57818959,0.00010573,2]
[426401375,1782351033000,-500.0,0.00011211,2]
[426401348,1782351033000,-116.48294632,0.00010531,2]
[426401352,1782351033000,-625.6,0.00010559,2]
[426401351,1782351033000,-878.98,0.00010554,2]
[426401347,1782351033000,-383.02,0.00010531,2]
[426401360,1782351033000,-166.66,0.00011068,2]
[426401377,1782351033000,-500.0,0.00011211,2]
[426401349,1782351033000,-146.03818959,0.00010531,2]
[426401381,1782351033000,-500.0,0.00011211,2]
[426401383,1782351033000,-500.0,0.00011211,2]
[426401430,1782351033000,-500.0,0.00011211,2]
[426401432,1782351033000,-500.0,0.00011211,2]
[426401426,1782351033000,-346.16707986,0.00011211,2]
[426401428,1782351033000,-153.83292014,0.00011211,2]
[426401419,1782351033000,-500.0,0.00011211,2]
[426401417,1782351033000,-169.77184954,0.00011211,2]
[426401424,1782351033000,-500.0,0.00011211,2]
[426401411,1782351033000,-500.0,0.00011211,2]
[426401413,1782351033000,-500.0,0.00011211,2]
[426401422,1782351033000,-500.0,0.00011211,2]
[426401406,1782351033000,-500.0,0.00011211,2]
[426401415,1782351033000,-500.0,0.00011211,2]
[426401408,1782351033000,-500.0,0.00011211,2]
[426401379,1782351033000,-500.0,0.00011211,2]
[426401401,1782351033000,-500.0,0.00011211,2]
[426401385,1782351033000,-500.0,0.00011211,2]
[426401397,1782351033000,-500.0,0.00011211,2]
[426401395,1782351033000,-500.0,0.00011211,2]
[426401389,1782351033000,-500.0,0.00011211,2]
[426401386,1782351033000,-500.0,0.00011211,2]
[426401393,1782351033000,-500.0,0.00011211,2]
[426401402,1782351033000,-500.0,0.00011211,2]
[426401398,1782351033000,-500.0,0.00011211,2]
[426401404,1782351033000,-500.0,0.00011211,2]
[426401391,1782351033000,-500.0,0.00011211,2]
[426401473,1782351034000,-152.0,0.00011451,2]
[426401474,1782351034000,-151.0,0.00011451,2]
[426401477,1782351034000,-150.0,0.00011451,2]
[426401475,1782351034000,-150.0,0.00011451,2]
[426401472,1782351034000,-152.0,0.00011451,2]
[426401466,1782351034000,-21746.19011412,0.00011352,2]
[426401471,1782351034000,-151.0,0.0001145,2]
[426401469,1782351034000,-150.0,0.0001145,2]
[426401467,1782351034000,-166.66,0.00011397,2]
[426401468,1782351034000,-500.0,0.00011408,2]
[426401478,1782351034000,-151.0,0.00011451,2]
[426401470,1782351034000,-150.0,0.0001145,2]
[426401479,1782351034000,-150.0,0.00011451,2]
[426401489,1782351034000,-151.0,0.00011452,2]
[426401481,1782351034000,-151.0,0.00011451,2]
[426401480,1782351034000,-150.0,0.00011451,2]
[426401483,1782351034000,-500.0,0.00011451,2]
[426401484,1782351034000,-390.56627957,0.00011451,2]
[426401482,1782351034000,-163.81,0.00011451,2]
[426401486,1782351034000,-529.94394777,0.00011451,2]
[426401488,1782351034000,-151.0,0.00011452,2]
[426401487,1782351034000,-151.0,0.00011451,2]
[426401490,1782351034000,-151.0,0.00011452,2]
[426401485,1782351034000,-229.04948172,0.00011451,2]
[426401492,1782351034000,-152.0,0.00011452,2]
[426401464,1782351034000,-166.66,0.00011288,2]
[426401491,1782351034000,-151.0,0.00011452,2]
[426401496,1782351034000,-52695.0,0.00011452,2]
[426401476,1782351034000,-151.0,0.00011451,2]
[426401463,1782351034000,-157.44,0.00011285,2]
[426401449,1782351034000,-500.0,0.00011212,2]
[426401465,1782351034000,-383.02,0.00011321,2]
[426401433,1782351034000,-306.50770403,0.00011211,2]
[426401435,1782351034000,-250.0,0.00011211,2]
[426401434,1782351034000,-193.49229597,0.00011211,2]
[426401438,1782351034000,-500.0,0.00011211,2]
[426401439,1782351034000,-500.0,0.00011211,2]
[426401437,1782351034000,-500.0,0.00011211,2]
[426401436,1782351034000,-500.0,0.00011211,2]
[426401440,1782351034000,-57.63927809,0.00011211,2]
[426401497,1782351034000,-1000.0,0.00011452,2]
[426401443,1782351034000,-500.0,0.00011211,2]
[426401441,1782351034000,-397.84647269,0.00011211,2]
[426401444,1782351034000,-500.0,0.00011211,2]
[426401446,1782351034000,-161.31685485,0.00011211,2]
[426401462,1782351034000,-522.43,0.00011281,2]
[426401448,1782351034000,-500.0,0.00011212,2]
[426401451,1782351034000,-500.0,0.00011212,2]
[426401447,1782351034000,-500.0,0.00011212,2]
[426401450,1782351034000,-500.0,0.00011212,2]
[426401452,1782351034000,-500.0,0.00011212,2]
[426401454,1782351034000,-259.21621537,0.00011212,2]
[426401453,1782351034000,-500.0,0.00011212,2]
[426401456,1782351034000,-5216.62,0.00011281,2]
[426401455,1782351034000,-150.0,0.0001128,2]
[426401457,1782351034000,-4999.99,0.00011281,2]
[426401459,1782351034000,-2603.58,0.00011281,2]
[426401458,1782351034000,-5695.57,0.00011281,2]
[426401460,1782351034000,-9999.99,0.00011281,2]
[426401461,1782351034000,-9999.99,0.00011281,2]
[426401445,1782351034000,-500.0,0.00011211,2]
[426401495,1782351034000,-151.0,0.00011452,2]
[426401442,1782351034000,-44.51424922,0.00011211,2]
[426401494,1782351034000,-150.0,0.00011452,2]
[426401531,1782351034000,-1000.0,0.00011452,2]
[426401535,1782351034000,-1000.0,0.00011452,2]
[426401532,1782351034000,-1000.0,0.00011452,2]
[426401536,1782351034000,-1000.0,0.00011452,2]
[426401534,1782351034000,-1000.0,0.00011452,2]
[426401533,1782351034000,-1000.0,0.00011452,2]
[426401537,1782351034000,-1000.0,0.00011452,2]
[426401540,1782351034000,-1000.0,0.00011452,2]
[426401538,1782351034000,-1000.0,0.00011452,2]
[426401539,1782351034000,-1000.0,0.00011452,2]
[426401541,1782351034000,-1000.0,0.00011452,2]
[426401543,1782351034000,-1000.0,0.00011452,2]
[426401542,1782351034000,-1000.0,0.00011452,2]
[426401544,1782351034000,-1000.0,0.00011452,2]
[426401546,1782351034000,-1000.0,0.00011452,2]
[426401545,1782351034000,-1000.0,0.00011452,2]
[426401547,1782351034000,-1000.0,0.00011452,2]
[426401548,1782351034000,-1000.0,0.00011452,2]
[426401551,1782351034000,-1000.0,0.00011452,2]
[426401556,1782351034000,-1000.0,0.00011452,2]
[426401553,1782351034000,-1000.0,0.00011452,2]
[426401555,1782351034000,-1000.0,0.00011452,2]
[426401549,1782351034000,-1000.0,0.00011452,2]
[426401554,1782351034000,-1000.0,0.00011452,2]
[426401550,1782351034000,-1000.0,0.00011452,2]
[426401559,1782351034000,-822.44741404,0.00011487,2]
[426401558,1782351034000,-278.21858292,0.00011487,2]
[426401557,1782351034000,-216.42324807,0.00011471,2]
[426401493,1782351034000,-151.0,0.00011452,2]
[426401530,1782351034000,-1000.0,0.00011452,2]
[426401529,1782351034000,-1000.0,0.00011452,2]
[426401552,1782351034000,-1000.0,0.00011452,2]
[426401528,1782351034000,-1000.0,0.00011452,2]
[426401527,1782351034000,-1000.0,0.00011452,2]
[426401498,1782351034000,-1000.0,0.00011452,2]
[426401501,1782351034000,-1000.0,0.00011452,2]
[426401504,1782351034000,-1000.0,0.00011452,2]
[426401502,1782351034000,-1000.0,0.00011452,2]
[426401500,1782351034000,-1000.0,0.00011452,2]
[426401503,1782351034000,-1000.0,0.00011452,2]
[426401506,1782351034000,-1000.0,0.00011452,2]
[426401505,1782351034000,-1000.0,0.00011452,2]
[426401507,1782351034000,-1000.0,0.00011452,2]
[426401508,1782351034000,-1000.0,0.00011452,2]
[426401499,1782351034000,-1000.0,0.00011452,2]
[426401510,1782351034000,-1000.0,0.00011452,2]
[426401511,1782351034000,-1000.0,0.00011452,2]
[426401509,1782351034000,-1000.0,0.00011452,2]
[426401514,1782351034000,-1000.0,0.00011452,2]
[426401526,1782351034000,-1000.0,0.00011452,2]
[426401524,1782351034000,-1000.0,0.00011452,2]
[426401525,1782351034000,-1000.0,0.00011452,2]
[426401520,1782351034000,-1000.0,0.00011452,2]
[426401512,1782351034000,-1000.0,0.00011452,2]
[426401518,1782351034000,-1000.0,0.00011452,2]
[426401521,1782351034000,-1000.0,0.00011452,2]
[426401523,1782351034000,-1000.0,0.00011452,2]
[426401519,1782351034000,-1000.0,0.00011452,2]
[426401516,1782351034000,-1000.0,0.00011452,2]
[426401513,1782351034000,-1000.0,0.00011452,2]
[426401515,1782351034000,-1000.0,0.00011452,2]
[426401517,1782351034000,-1000.0,0.00011452,2]
[426401522,1782351034000,-1000.0,0.00011452,2]
[426401563,1782351035000,-62.72873802,0.00011487,2]
[426401561,1782351035000,-3097.0668773,0.00011487,2]
[426401560,1782351035000,-19275.4452365,0.00011487,2]
[426401567,1782351035000,-357.85541532,0.00011577,2]
[426401565,1782351035000,-500.0,0.00011487,2]
[426401562,1782351035000,-151.0,0.00011487,2]
[426401568,1782351035000,-47.08720254,0.00011577,2]
[426401569,1782351035000,-310.76821278,0.00011577,2]
[426401566,1782351035000,-166.66,0.00011507,2]
[426401570,1782351035000,-150.61546081,0.00011584,2]
[426401571,1782351035000,-383.02,0.00011584,2]
[426401572,1782351035000,-2000.0,0.00011587,2]
[426401573,1782351035000,-2325.06482232,0.00011587,2]
[426401574,1782351035000,159.0,0.00028739,30]
[426401575,1782351035000,159.0,0.00029739,30]
[426401564,1782351035000,-89.27126198,0.00011487,2]
[426401576,1782351037000,159.0,0.00030739,30]
[426401607,1782351038000,-278.21858291,0.00012056,2]
[426401606,1782351038000,-500.0,0.00012035,2]
[426401602,1782351038000,-678.35246421,0.00011849,2]
[426401604,1782351038000,-625.6,0.00011879,2]
[426401613,1782351038000,-21746.19011405,0.00012535,2]
[426401612,1782351038000,-172.1,0.00012431,2]
[426401610,1782351038000,-500.0,0.00012309,2]
[426401596,1782351038000,-150.0,0.00011587,2]
[426401614,1782351038000,-500.0,0.00012583,2]
[426401597,1782351038000,-151.0,0.00011587,2]
[426401601,1782351038000,-800.0,0.000118,4]
[426401600,1782351038000,-500.0,0.00011761,2]
[426401603,1782351038000,-22372.5121138,0.00011866,2]
[426401598,1782351038000,-400.0,0.000117,4]
[426401608,1782351038000,-21746.19011405,0.0001214,2]
[426401599,1782351038000,-21746.19011405,0.00011746,2]
[426401592,1782351038000,-708.38683977,0.00011587,2]
[426401595,1782351038000,-151.0,0.00011587,2]
[426401594,1782351038000,-153.0,0.00011587,2]
[426401593,1782351038000,-29287.13115665,0.00011587,2]
[426401591,1782351038000,-1005.87528126,0.00011587,2]
[426401609,1782351038000,-22372.5121138,0.00012245,2]
[426401605,1782351038000,-1200.0,0.000119,4]
[426401611,1782351038000,-255.0,0.00012341,2]
[426401622,1782351038000,-338.63341566,0.00013131,2]
[426401615,1782351038000,-278.21858291,0.00012625,2]
[426401616,1782351038000,-22372.5121138,0.00012625,2]
[426401635,1782351038000,-150.0,0.00013463,2]
[426401639,1782351038000,-150.0,0.00013463,2]
[426401632,1782351038000,-150.0,0.00013463,2]
[426401638,1782351038000,-150.0,0.00013463,2]
[426401636,1782351038000,-150.0,0.00013463,2]
[426401637,1782351038000,-150.0,0.00013463,2]
[426401634,1782351038000,-150.0,0.00013463,2]
[426401640,1782351038000,-150.0,0.0001349,2]
[426401631,1782351038000,-150.0,0.00013463,2]
[426401629,1782351038000,-22372.5121138,0.00013383,2]
[426401630,1782351038000,-150.0,0.00013463,2]
[426401633,1782351038000,-150.0,0.00013463,2]
[426401626,1782351038000,-625.6,0.00013199,2]
[426401625,1782351038000,-822.44741403,0.00013194,2]
[426401627,1782351038000,-167.35,0.00013311,2]
[426401624,1782351038000,-278.21858291,0.00013194,2]
[426401623,1782351038000,-157.44,0.00013166,2]
[426401628,1782351038000,-21746.19011405,0.00013323,2]
[426401621,1782351038000,-22372.5121138,0.00013004,2]
[426401617,1782351038000,-183.0179691,0.00012793,2]
[426401620,1782351038000,-21746.19011405,0.00012929,2]
[426401618,1782351038000,-183.01796911,0.00012793,2]
[426401619,1782351038000,-500.0,0.00012857,2]
[426401680,1782351039000,-500.0,0.00013698,2]